[Event "TUR-ch Veterans 2019"]
[Site "Belek"]
[Date "2019.01.25"]
[Round "6.9"]
[White "Azizoglu, Ayhan"]
[Black "Alnajih, Mustafa A."]
[Result "1-0"]
[ECO "B21"]
[WhiteElo "1861"]
[BlackElo "1842"]
[Annotator "NA"]
[PlyCount "63"]
[EventDate "2019.01.20"]
[EventType "swiss"]
[EventCountry "TUR"]
[SourceTitle "playchess.com"]
[Source "ChessBase"]
[SourceQuality "1"]
[TimeControl "5400+30"]

1. e4 {[%emt 0:00:30]} c5 {[%emt 0:00:30]} 2. d4 {[%emt 0:00:00]} cxd4 {[%emt 0:00:00]} 3. c3 {[%emt 0:00:00]} dxc3 {[%emt 0:00:00]} 4. Nxc3 {[%emt 0:00:30]} Nc6 {[%emt 0:00:30]} 5. Nf3 {[%emt 0:00:00]} d6 {[%emt 0:04:30]} 6. Bc4 {[%emt 0:00:00]} e6 {[%emt 0:03:30]} 7. O-O {[%emt 0:01:30]} Nf6 {[%emt 0:02:30]} 8. Qe2 {[%emt 0:00:30]} Be7 {[%emt 0:03:30]} 9. Rd1 {[%emt 0:00:00]} Bd7 {[%emt 0:00:30]} 10. Bf4 {[%emt 0:08:00] B21: Sicilian: 2 f4 and Morra Gambit} (10. Nb5 O-O 11. Nxd6 Bxd6 12. Rxd6 Qc7 13. Rd1 a6 14. e5 Nd5 15. Qe4 Nce7 16. Bg5 Bc6 17. Bd3 Ng6 {1-0 (45) Vasiliev,V (2351)-Kurilin,A (2281) Bogoroditsk 2013}) 10... e5 {[%emt 0:09:30]} 11. Bg5 {[%emt 0:01:30]} Be6 {[%emt 0:06:30]} 12. Bxf6 {[%emt 0:09:30]} Bxf6 {[%emt 0:05:30]} 13. Bxe6 $146 {[%emt 0:06:30]} ({You set blue moves yourself with the critical opening position annotation.:} 13. Nd5 Bxd5 14. Bxd5 O-O 15. Qb5 Qd7 16. Rac1 Rac8 17. Rc3 Rc7 18. Rdc1 Rfc8 19. Qa4 {0-1 (40) Khobeliya,L (1578)-Alvarez Albiol,V (1828) Batumi 2014}) 13... fxe6 {[%emt 0:00:30]} 14. Nb5 {[%emt 0:00:30]} Nd4 {[%emt 0:07:30]} (14... O-O $11 {remains equal.}) 15. Nfxd4 {[%emt 0:06:30]} exd4 {[%emt 0:00:30]} 16. Nxd4 {[%emt 0:00:30]} Bxd4 {[%emt 0:02:30]} 17. Rxd4 {[%emt 0:03:30]} Qb6 {[%emt 0:01:30]} (17... Rc8 $16) 18. Rad1 {[%emt 0:12:30]} Rd8 {[%emt 0:03:30]} 19. Qh5+ {[%emt 0:10:30]} g6 $16 {[%emt 0:06:30]} 20. Qg4 {[%emt 0:02:30]} Kf7 {[%emt 0:05:30]} 21. Qf4+ {[%emt 0:00:30]} Ke7 {[%emt 0:00:30]} 22. Qg5+ {[%emt 0:01:30]} Kf7 {[%emt 0:00:30]} 23. e5 {[%emt 0:00:30]} Rhe8 {[%emt 0:02:30]} 24. Rxd6 {[%emt 0:08:30]} Rxd6 {[%emt 0:01:30]} 25. Qf6+ {[%emt 0:06:30]} Kg8 {[%emt 0:00:30]} 26. exd6 {[%emt 0:00:30]} Qd8 {[%emt 0:01:30]} 27. d7 {[%emt 0:03:38]} Rf8 {[%emt 0:07:30]} 28. Qxe6+ {[%emt 0:00:48]} Kg7 {[%emt 0:00:30]} 29. Qe5+ {[%emt 0:00:10]} Kh6 {[%emt 0:02:30]} 30. Qe3+ {[%emt 0:01:12]} Kg7 {[%emt 0:00:30]} 31. Qxa7 {[%emt 0:04:06]} Qf6 {[%emt 0:02:30]} 32. Qd4 {[%emt 0:01:37]} 1-0

[Event "TUR-ch Veterans 2019"]
[Site "Belek"]
[Date "2019.01.25"]
[Round "6.10"]
[White "Cosan, Gokmen"]
[Black "Yalciner, Suleyman"]
[Result "1/2-1/2"]
[ECO "D31"]
[WhiteElo "1727"]
[BlackElo "1491"]
[Annotator "NA"]
[PlyCount "152"]
[EventDate "2019.01.20"]
[EventType "swiss"]
[EventCountry "TUR"]
[SourceTitle "playchess.com"]
[Source "ChessBase"]
[SourceQuality "1"]
[TimeControl "5400+30"]

1. d4 {[%emt 0:00:30]} d5 {[%emt 0:00:30]} 2. c4 {[%emt 0:00:30]} e6 {[%emt 0:00:30]} 3. Nc3 {[%emt 0:00:00]} c6 {[%emt 0:00:30]} 4. e3 {[%emt 0:00:00]} Bd6 {[%emt 0:00:00]} 5. Nf3 {[%emt 0:00:30]} Nd7 {[%emt 0:00:00]} 6. e4 {[%emt 0:01:30]} dxe4 {[%emt 0:00:30]} 7. Nxe4 {[%emt 0:00:30]} Bc7 {[%emt 0:00:30]} 8. Bd3 {[%emt 0:00:30]} Ngf6 {[%emt 0:00:30]} 9. O-O {[%emt 0:00:30]} h6 {[%emt 0:00:30]} 10. Re1 {[%emt 0:01:30]} O-O {[%emt 0:00:30]} 11. b3 {[%emt 0:02:30]} Nxe4 {[%emt 0:00:30]} 12. Bxe4 {[%emt 0:00:00]} Nf6 {[%emt 0:00:30]} 13. Bc2 {[%emt 0:00:00]} Re8 {[%emt 0:01:30]} 14. Ne5 {[%emt 0:02:30]} Bxe5 {[%emt 0:07:30]} 15. Rxe5 {[%emt 0:01:30]} Nd7 {[%emt 0:07:30]} 16. Qd3 {[%emt 0:11:30]} f5 {[%emt 0:06:30]} 17. Re1 {[%emt 0:00:30]} Nf6 {[%emt 0:00:30]} 18. Bb2 {[%emt 0:01:30]} b6 {[%emt 0:01:30]} 19. Re3 {[%emt 0:01:30]} Qc7 {[%emt 0:01:30]} 20. Rae1 {[%emt 0:00:30]} Bd7 {[%emt 0:02:30]} 21. h3 {[%emt 0:01:30]} Rad8 {[%emt 0:01:30]} 22. Re5 {[%emt 0:01:30]} Bc8 {[%emt 0:06:30]} 23. Qf3 {[%emt 0:03:30]} Qf7 {[%emt 0:07:30]} 24. Qxc6 {[%emt 0:07:30]} Bb7 {[%emt 0:00:30]} 25. Qb5 {[%emt 0:00:30]} Qg6 {[%emt 0:00:00]} 26. d5 {[%emt 0:00:30]} exd5 {[%emt 0:15:00]} 27. Bxf5 {[%emt 0:00:30]} Qxf5 {[%emt 0:05:30]} 28. Rxf5 {[%emt 0:03:30]} Rxe1+ {[%emt 0:00:30]} 29. Kh2 {[%emt 0:00:30]} d4 {[%emt 0:02:30]} 30. Re5 {[%emt 0:01:30]} Rb1 {[%emt 0:01:30]} 31. Ba3 {[%emt 0:00:30]} d3 {[%emt 0:00:30]} 32. Bb4 {[%emt 0:00:00]} d2 {[%emt 0:01:30]} 33. Bxd2 {[%emt 0:01:00]} Rxd2 {[%emt 0:00:30]} 34. Re7 {[%emt 0:00:00]} Be4 {[%emt 0:02:30]} 35. Rxe4 {[%emt 0:04:00]} Rxf2 {[%emt 0:04:30]} 36. Re3 {[%emt 0:00:30]} Rbb2 {[%emt 0:00:30]} 37. Rg3 {[%emt 0:00:30]} Rbe2 {[%emt 0:03:30]} 38. Qc6 {[%emt 0:01:30]} Rxa2 {[%emt 0:08:30]} 39. b4 {[%emt 0:00:00]} Rae2 {[%emt 0:05:11]} 40. c5 {[%emt 0:00:00]} bxc5 {[%emt 0:00:53]} 41. bxc5 {[%emt 0:00:00]} Ne4 {[%emt 0:00:00]} 42. Rg4 {[%emt 0:00:00]} Nf6 {[%emt 0:02:11]} 43. Ra4 {[%emt 0:00:30]} Ne4 {[%emt 0:01:43]} 44. Qxe4 {[%emt 0:03:30]} Rxe4 {[%emt 0:00:12]} 45. Rxe4 {[%emt 0:00:30]} Rc2 {[%emt 0:00:12]} 46. Re8+ {[%emt 0:01:30]} Kf7 {[%emt 0:00:02]} 47. Rc8 {[%emt 0:00:30]} a5 {[%emt 0:00:27]} 48. c6 {[%emt 0:00:30]} a4 {[%emt 0:00:21]} 49. c7 {[%emt 0:00:30]} a3 {[%emt 0:00:10]} 50. Ra8 {[%emt 0:00:00]} Rxc7 {[%emt 0:00:50]} 51. Rxa3 {[%emt 0:00:00]} Rc2 {[%emt 0:00:00]} 52. Kg3 {[%emt 0:00:30]} g6 {[%emt 0:00:11]} 53. Kf3 {[%emt 0:00:00]} Rc1 {[%emt 0:00:48]} 54. g4 {[%emt 0:01:00]} Rf1+ {[%emt 0:00:37]} 55. Kg2 {[%emt 0:04:30]} Rb1 {[%emt 0:00:10]} 56. Rf3+ {[%emt 0:01:30]} Kg7 {[%emt 0:00:08]} 57. h4 {[%emt 0:00:00]} Rb5 {[%emt 0:00:47]} 58. Kg3 {[%emt 0:01:00]} Ra5 {[%emt 0:00:27]} 59. Rb3 {[%emt 0:01:30]} Rc5 {[%emt 0:00:30]} 60. Rb4 {[%emt 0:00:30]} Ra5 {[%emt 0:00:47]} 61. Kf4 {[%emt 0:00:30]} Rc5 {[%emt 0:00:38]} 62. Rb7+ {[%emt 0:02:30]} Kg8 {[%emt 0:00:52]} 63. Re7 {[%emt 0:01:30]} Ra5 {[%emt 0:01:18]} 64. Re5 {[%emt 0:02:30]} Ra4+ {[%emt 0:00:07]} 65. Re4 {[%emt 0:00:30]} Ra5 {[%emt 0:00:08]} 66. Rb4 {[%emt 0:01:30]} Rc5 {[%emt 0:00:35]} 67. Ke4 {[%emt 0:03:30]} Ra5 {[%emt 0:00:21]} 68. Rd4 {[%emt 0:00:30]} Kf7 {[%emt 0:00:32]} 69. Rc4 {[%emt 0:00:30]} Rb5 {[%emt 0:00:12]} 70. Rd4 {[%emt 0:01:30]} Kf6 {[%emt 0:00:42]} 71. Rd6+ {[%emt 0:00:30]} Kf7 {[%emt 0:00:13]} 72. Rd4 {[%emt 0:00:30]} Kf6 {[%emt 0:00:09]} 73. Rc4 {[%emt 0:00:30]} Re5+ {[%emt 0:00:42]} 74. Kd4 {[%emt 0:01:30]} Ra5 {[%emt 0:01:42]} 75. Ke4 {[%emt 0:00:30]} Re5+ {[%emt 0:00:26]} 76. Kd4 {[%emt 0:00:30]} Ra5 {[%emt 0:00:18]} 1/2-1/2

[Event "TUR-ch Veterans 2019"]
[Site "Belek"]
[Date "2019.01.25"]
[Round "6.11"]
[White "Tahaoglu, Erson"]
[Black "Ozmen, Halil Nejat"]
[Result "0-1"]
[ECO "A45"]
[WhiteElo "1454"]
[BlackElo "1802"]
[Annotator "NA RC"]
[PlyCount "62"]
[EventDate "2019.01.20"]
[EventType "swiss"]
[EventCountry "TUR"]
[SourceTitle "playchess.com"]
[Source "ChessBase"]
[SourceQuality "1"]
[TimeControl "5400+30"]

1. d4 {[%emt 0:00:30]} Nf6 {[%emt 0:00:30]} 2. Bg5 {[%emt 0:00:00]} Ne4 {[%emt 0:00:30]} 3. Bf4 {[%emt 0:00:00]} c5 {[%emt 0:00:00]} 4. f3 {[%emt 0:00:00]} Qa5+ {[%emt 0:00:00]} 5. c3 {[%emt 0:00:00]} Nf6 {[%emt 0:00:30]} 6. Nd2 {[%emt 0:00:30]} cxd4 {[%emt 0:00:00] A45: Trompowsky Attack} 7. Nc4 {[%emt 0:00:00]} (7. Nb3 Qb6 8. Qxd4 Nc6 9. Qxb6 axb6 10. Nd4 Ra5 11. b4 Ra4 12. e4 Nxd4 13. cxd4 e6 14. Bb5 Rxb4 15. a4 Rxd4 16. Ne2 Rb4 17. Kd2 Bc5 18. Kc2 {½-½ (40) Romanov,E (2619)-Svidler,P (2760) Sochi 2018}) 7... Qd8 {[%emt 0:00:00]} 8. Bxb8 {[%emt 0:00:00]} Rxb8 {[%emt 0:00:30]} 9. Qxd4 {[%emt 0:00:30]} b5 {[%emt 0:00:30]} 10. Qe5 $146 {[%emt 0:06:30]} ({You set blue moves yourself with the critical opening position annotation.:} 10. Nd2 Qc7 11. e4 e5 12. Qd3 Bc5 13. b4 Be7 14. a3 {0-1 (55) Sokolin,L (2508)-Gurvich,V (2270) St Petersburg 2018}) 10... d6 {[%emt 0:00:30]} 11. Qd4 {[%emt 0:01:30]} bxc4 {[%emt 0:00:30]} 12. Qxa7 {[%emt 0:00:00]} Qb6 {[%emt 0:00:30]} 13. Qa3 {[%emt 0:00:00]} Qxb2 {[%emt 0:00:30]} 14. Qxb2 {[%emt 0:00:30]} Rxb2 {[%emt 0:00:30]} 15. e4 {[%emt 0:00:00]} Ba6 {[%emt 0:00:00]} 16. Ne2 {[%emt 0:01:00]} g6 {[%emt 0:00:00]} 17. Ng3 {[%emt 0:00:30]} Bg7 {[%emt 0:00:30]} 18. f4 {[%emt 0:00:00]} O-O {[%emt 0:00:30]} 19. Be2 {[%emt 0:00:00]} h5 {[%emt 0:00:30]} 20. O-O {[%emt 0:00:00]} h4 {[%emt 0:00:00]} 21. e5 {[%emt 0:00:00]} hxg3 {[%emt 0:00:00]} 22. exf6 {[%emt 0:00:30]} gxh2+ {[%emt 0:00:30]} 23. Kxh2 {[%emt 0:00:30]} Bxf6 {[%emt 0:00:30]} 24. Bf3 {[%emt 0:00:30]} Bxc3 {[%emt 0:00:30]} 25. Rac1 {[%emt 0:00:30]} Bf6 {[%emt 0:00:30]} 26. a4 {[%emt 0:00:00]} Kg7 {[%emt 0:00:30]} 27. Bd5 {[%emt 0:00:00]} c3 {[%emt 0:00:00]} 28. Rf3 {[%emt 0:00:30]} Rh8+ {[%emt 0:00:00]} 29. Kg3 {[%emt 0:00:00]} Bh4+ {[%emt 0:00:30]} 30. Kg4 {[%emt 0:00:00]} f5+ {[%emt 0:00:30]} 31. Kh3 {[%emt 0:00:00]} Bf2# {[%emt 0:00:00]} 0-1

[Event "TUR-ch Veterans 2019"]
[Site "Belek"]
[Date "2019.01.25"]
[Round "6.12"]
[White "Karadag, Eflatun Cem"]
[Black "Subasi, Zeki"]
[Result "1/2-1/2"]
[ECO "E05"]
[WhiteElo "1927"]
[BlackElo "1707"]
[Annotator "NA"]
[PlyCount "75"]
[EventDate "2019.01.20"]
[EventType "swiss"]
[EventCountry "TUR"]
[SourceTitle "playchess.com"]
[Source "ChessBase"]
[SourceQuality "1"]
[TimeControl "5400+30"]

{[%evp 21,75,52,41,-2,0,32767,21,22,29,-68,-61,-67,32767,-82,-87,-98,-95,-97,-85,-85,-83,-76,-75,-83,32767,-92,-85,-89,-79,-68,-86,-125,-112,-124,-131,-200,-174,-185,-70,32767,-5,32767,-12,32767,32767,32767,32767,32767,32767,32767,32767,32767,32767,32767,0,-63]} 1. Nf3 {[%emt 0:00:30]} Nf6 {[%emt 0:00:30]} 2. d4 {[%emt 0:00:00]} d5 {[%emt 0:00:00]} 3. g3 {[%emt 0:00:00]} e6 {[%emt 0:05:00]} 4. Bg2 {[%emt 0:00:30]} Be7 {[%emt 0:00:30]} 5. O-O {[%emt 0:00:30]} O-O {[%emt 0:00:00]} 6. c4 {[%emt 0:00:00]} dxc4 {[%emt 0:00:00]} 7. Qc2 {[%emt 0:00:00]} a6 {[%emt 0:00:30]} 8. a4 {[%emt 0:00:30]} Nc6 {[%emt 0:01:30]} 9. Qxc4 {[%emt 0:01:30]} Bd7 {[%emt 0:00:30] E05: Open Catalan: 5 Nf3 Be7} 10. Ne5 {[%emt 0:05:30]} Nxe5 {[%emt 0:03:30]} 11. dxe5 {[%emt 0:00:30]} Nd5 $1 {[%emt 0:00:30]} 12. a5 $146 {[%emt 0:04:30]} ({Predecessor:} 12. Rd1 Qc8 13. Nc3 Nxc3 14. Qxc3 c5 15. Be3 Rb8 16. b4 Bc6 17. Bxc5 Bxg2 18. Kxg2 {½-½ (32) Andreikin,D (2713)-Karjakin,S (2782) Moscow 2013}) 12... Bb5 {[%emt 0:02:30]} 13. Qg4 {[%emt 0:01:30]} g6 {[%emt 0:05:30]} 14. Bh6 {[%emt 0:03:30]} Re8 {[%emt 0:00:00]} 15. Rd1 {[%emt 0:01:30] [#]} ({Better is} 15. Nc3 $11) 15... Ne3 $1 {[%emt 0:05:00]} 16. Rxd8 {[%emt 0:02:30]} Nxg4 {[%emt 0:00:00]} 17. Rxa8 {[%emt 0:01:30]} Rxa8 {[%emt 0:00:00]} 18. Bf4 {[%emt 0:00:30] [#]} g5 $1 {[%emt 0:00:30]} 19. Bf3 {[%emt 0:03:30]} gxf4 {[%emt 0:00:30]} 20. Bxg4 {[%emt 0:00:00]} fxg3 {[%emt 0:00:30]} 21. hxg3 {[%emt 0:00:00]} Rd8 {[%emt 0:00:30]} 22. Nc3 {[%emt 0:00:30]} Bc6 {[%emt 0:00:30]} 23. Bf3 {[%emt 0:07:30]} Bxf3 {[%emt 0:00:30]} 24. exf3 {[%emt 0:00:30]} Rd2 {[%emt 0:00:30]} 25. Ne4 {[%emt 0:00:00]} Rxb2 {[%emt 0:01:30]} 26. Rc1 {[%emt 0:01:00]} c6 {[%emt 0:06:30]} 27. Rd1 {[%emt 0:00:30]} Kf8 {[%emt 0:00:30]} 28. Kg2 {[%emt 0:01:30]} (28. f4 $17 {might work better.}) 28... Rb5 {[%emt 0:00:30]} 29. f4 {[%emt 0:00:30]} Rd5 {[%emt 0:03:30]} ({Better is} 29... Rxa5 $19 30. Rd7 Rb5) 30. Rb1 {[%emt 0:00:30]} Rd7 {[%emt 0:00:30]} ({Black should play} 30... Rd4 $15 31. Nf6 Bxf6 32. exf6 Rd7) 31. g4 {[%emt 0:00:30]} Rd4 {[%emt 0:05:30]} 32. f3 {[%emt 0:01:30]} Rb4 {[%emt 0:00:00]} 33. Rd1 {[%emt 0:00:30]} Rb5 {[%emt 0:01:00]} 34. f5 {[%emt 0:00:30]} Rd5 {[%emt 0:01:30]} 35. Rb1 {[%emt 0:01:30]} Rb5 {[%emt 0:07:30]} ({But not} 35... Rxa5 36. f6 $11) 36. Rd1 {[%emt 0:00:30]} Rd5 {[%emt 0:04:30]} 37. Rb1 {[%emt 0:01:30]} Rb5 $11 {[%emt 0:07:30]} 38. Rd1 $1 {[%emt 0:00:00]} 1/2-1/2

[Event "TUR-ch Veterans 2019"]
[Site "Belek"]
[Date "2019.01.25"]
[Round "6.13"]
[White "Yuksel, Mustafa"]
[Black "Akinci, Ahmet"]
[Result "1-0"]
[ECO "A46"]
[WhiteElo "2031"]
[BlackElo "1402"]
[Annotator "NA"]
[PlyCount "137"]
[EventDate "2019.01.20"]
[EventType "swiss"]
[EventCountry "TUR"]
[SourceTitle "playchess.com"]
[Source "ChessBase"]
[SourceQuality "1"]
[TimeControl "5400+30"]

1. d4 {[%emt 0:00:30]} Nf6 {[%emt 0:00:30]} 2. Nf3 {[%emt 0:00:00]} e6 {[%emt 0:00:30]} 3. Bf4 {[%emt 0:00:00]} c5 {[%emt 0:02:30]} 4. e3 {[%emt 0:00:30]} Nc6 {[%emt 0:00:30]} 5. Nbd2 {[%emt 0:00:00] A46: 1 d4 Nf6 2 Nf3 e6: Torre, London and Colle Systems} (5. Nc3 cxd4 6. exd4 Bb4 7. Bd3 O-O 8. O-O d5 9. Ne2 Be7 10. c3 Nh5 11. Re1 Bd7 12. Qc2 h6 {1-0 (39) Parligras,M (2623)-Almasi,Z (2702) Douglas 2018}) 5... Qb6 {[%emt 0:01:30]} 6. Nc4 {[%emt 0:01:00]} Qd8 {[%emt 0:00:30]} 7. Nd6+ {[%emt 0:09:30]} Bxd6 {[%emt 0:00:30]} 8. Bxd6 {[%emt 0:00:30]} cxd4 {[%emt 0:02:30]} 9. exd4 $146 {[%emt 0:03:30]} ({Predecessor:} 9. Nxd4 Ne4 10. Nb5 Nxd6 11. Qxd6 Qa5+ 12. c3 Kd8 {1-0 (20) Bistric,F (2430)-Turbuk,V Zadar 1998}) 9... Ne4 {[%emt 0:00:30]} 10. Ba3 {[%emt 0:00:30]} ({White should try} 10. Bf4 $14) 10... d6 {[%emt 0:01:30]} (10... Qa5+ $15 {stays ahead.} 11. Nd2 Nxd4) 11. Bd3 {[%emt 0:00:30]} Nf6 {[%emt 0:00:30]} 12. O-O {[%emt 0:01:30]} O-O {[%emt 0:00:30]} 13. Qd2 {[%emt 0:00:30]} Re8 {[%emt 0:02:30]} 14. Rfe1 {[%emt 0:01:30]} b6 {[%emt 0:05:30]} (14... Qd7 $14) 15. Qf4 {[%emt 0:00:30]} d5 {[%emt 0:03:30]} 16. Qh4 {[%emt 0:01:30]} ({White should try} 16. Ne5 $16 Nxe5 17. dxe5) 16... h6 {[%emt 0:02:30]} 17. Rad1 {[%emt 0:03:30]} a5 {[%emt 0:04:30]} 18. c3 {[%emt 0:06:30]} Ba6 {[%emt 0:00:30]} 19. Bb1 {[%emt 0:00:00]} Qc7 {[%emt 0:03:30]} 20. Ne5 {[%emt 0:00:00]} Nd7 {[%emt 0:02:30]} 21. Ng4 {[%emt 0:03:30]} ({Weaker is} 21. Nxf7 Kxf7 22. Qg4 Nf6 $15) 21... Qf4 {[%emt 0:01:30]} 22. Qh3 {[%emt 0:04:30]} ({Better is} 22. h3 $16) 22... b5 $2 {[%emt 0:01:30]} (22... f5 $11 23. Ne3 Nf6) 23. b3 $2 {[%emt 0:00:30]} (23. g3 $18 Qf3 24. Rd3 Qxd3 25. Bxd3) 23... f5 $1 {[%emt 0:05:30]} 24. Ne3 {[%emt 0:03:30]} Nf6 {[%emt 0:07:30]} 25. f3 {[%emt 0:08:30]} Kf7 {[%emt 0:02:30]} 26. Bc1 {[%emt 0:01:30]} Qd6 {[%emt 0:00:30] [#]} 27. g3 {[%emt 0:10:30]} (27. g4 $1 $16) 27... g5 $18 {[%emt 0:06:30]} (27... b4 $11 {and Black is okay.}) 28. Bxf5 {[%emt 0:00:30]} exf5 {[%emt 0:06:30]} 29. Nxf5 {[%emt 0:00:00]} Qd7 {[%emt 0:00:30]} 30. Nxh6+ {[%emt 0:01:00]} Kg6 {[%emt 0:00:30]} 31. Qxd7 {[%emt 0:04:30]} Nxd7 {[%emt 0:00:30]} 32. Ng4 {[%emt 0:00:00]} b4 {[%emt 0:00:30]} 33. Rxe8 {[%emt 0:06:00]} Rxe8 {[%emt 0:00:00]} 34. cxb4 {[%emt 0:00:30]} axb4 {[%emt 0:00:00]} 35. Be3 {[%emt 0:00:30]} Be2 {[%emt 0:01:30]} 36. Rc1 {[%emt 0:00:30]} Re6 {[%emt 0:00:30]} 37. Kf2 {[%emt 0:00:00]} Bd3 {[%emt 0:00:30]} 38. a3 {[%emt 0:02:00]} bxa3 {[%emt 0:02:30]} 39. Ra1 {[%emt 0:00:00]} Nb4 {[%emt 0:00:30]} 40. Rxa3 {[%emt 0:00:00]} Nc2 {[%emt 0:00:00]} 41. Ra5 {[%emt 0:00:30]} Nf6 {[%emt 0:01:00]} 42. Ne5+ {[%emt 0:00:30]} Kg7 {[%emt 0:02:30]} 43. Bxg5 {[%emt 0:00:30]} Bh7 {[%emt 0:04:30]} 44. Bxf6+ {[%emt 0:01:30]} Kxf6 {[%emt 0:00:00]} 45. Rxd5 {[%emt 0:00:30]} Ra6 {[%emt 0:02:00]} 46. g4 {[%emt 0:01:30]} Ra3 {[%emt 0:00:30]} 47. Rd6+ {[%emt 0:00:30]} Kg7 {[%emt 0:02:30]} 48. Rd7+ {[%emt 0:00:00]} Kg8 {[%emt 0:00:00]} 49. h4 {[%emt 0:00:00]} Rxb3 {[%emt 0:00:00]} 50. h5 {[%emt 0:00:30]} Rb4 {[%emt 0:01:30]} 51. Rd8+ {[%emt 0:01:30]} Kg7 {[%emt 0:00:30]} 52. Rd7+ {[%emt 0:00:00]} Kg8 {[%emt 0:00:00]} 53. h6 {[%emt 0:00:00]} Bd3 {[%emt 0:04:00]} 54. Nxd3 {[%emt 0:00:30]} Nxd4 {[%emt 0:01:30]} 55. Nf4 {[%emt 0:01:30]} Rb2+ {[%emt 0:00:30]} 56. Kg3 {[%emt 0:00:30]} Rb6 {[%emt 0:01:19]} 57. Rxd4 {[%emt 0:00:30]} Rxh6 {[%emt 0:00:09]} 58. Rd7 {[%emt 0:00:00]} Rh1 {[%emt 0:01:46]} 59. Nh5 {[%emt 0:00:00]} Ra1 {[%emt 0:00:16]} 60. Kh4 {[%emt 0:00:00]} Ra5 {[%emt 0:01:24]} 61. f4 {[%emt 0:00:00]} Kh8 {[%emt 0:00:11]} 62. Nf6 {[%emt 0:00:30]} Ra7 {[%emt 0:00:22]} 63. g5 {[%emt 0:00:00]} Rb7 {[%emt 0:00:54]} 64. g6 {[%emt 0:00:00]} Rxd7 {[%emt 0:00:00]} 65. Nxd7 {[%emt 0:00:30]} Kg7 {[%emt 0:00:06]} 66. Kg5 {[%emt 0:00:00]} Kg8 {[%emt 0:00:10]} 67. f5 {[%emt 0:00:00]} Kg7 {[%emt 0:00:24]} 68. f6+ {[%emt 0:00:30]} Kh8 {[%emt 0:00:01]} 69. f7 {[%emt 0:00:30]} 1-0

[Event "TUR-ch Veterans 2019"]
[Site "Belek"]
[Date "2019.01.25"]
[Round "6.14"]
[White "Muratoglu, Salih"]
[Black "Topaloglu, Hayati"]
[Result "1-0"]
[ECO "D46"]
[WhiteElo "1950"]
[BlackElo "1740"]
[Annotator "NA RC"]
[PlyCount "67"]
[EventDate "2019.01.20"]
[EventType "swiss"]
[EventCountry "TUR"]
[SourceTitle "playchess.com"]
[Source "ChessBase"]
[SourceQuality "1"]
[TimeControl "5400+30"]

1. d4 {[%emt 0:00:30]} d5 {[%emt 0:00:30]} 2. c4 {[%emt 0:00:00]} c6 {[%emt 0:00:00]} 3. Nf3 {[%emt 0:00:00]} Nf6 {[%emt 0:00:00]} 4. e3 {[%emt 0:00:30]} e6 {[%emt 0:00:30]} 5. Nc3 {[%emt 0:00:30]} Nbd7 {[%emt 0:01:30]} 6. Bd3 {[%emt 0:00:30]} Bd6 {[%emt 0:00:30]} 7. O-O {[%emt 0:00:30]} O-O {[%emt 0:00:30]} 8. e4 {[%emt 0:00:30]} dxe4 {[%emt 0:00:30]} 9. Nxe4 {[%emt 0:00:30]} Nxe4 {[%emt 0:01:30]} 10. Bxe4 {[%emt 0:00:00]} Nf6 {[%emt 0:00:30]} 11. Bc2 {[%emt 0:00:00]} h6 {[%emt 0:00:30]} 12. h3 {[%emt 0:01:30] D46: Semi-Slav: 5 e3 Nbd7 6 Bd3, Black avoids the Meran} (12. b3 b5 13. c5 Bc7 14. a3 a5 15. Bd2 Qd5 16. Re1 Rd8 17. Qc1 Ba6 18. Bxh6 b4 19. Bg5 Kf8 20. a4 Ke8 {1-0 (32) Landa,K (2609)-Megaranto,S (2499) Vlissingen 2005}) 12... Re8 {[%emt 0:01:30]} 13. Re1 {[%emt 0:00:30]} Bd7 $146 {[%emt 0:00:30]} ({You set blue moves yourself with the critical opening position annotation.:} 13... b6 14. a3 Bb7 15. b3 c5 16. dxc5 Bxc5 17. Qe2 Qc7 18. Bb2 Be7 19. Rad1 Rad8 20. Rxd8 Rxd8 {½-½ (35) Csetneki,M (1536)-Toth,A (1664) Budapest 2010}) 14. Ne5 {[%emt 0:01:30]} Qc7 {[%emt 0:00:30]} 15. c5 {[%emt 0:01:30]} Bf8 {[%emt 0:01:30]} 16. Qf3 {[%emt 0:01:30]} (16. Qd3 $142) 16... Qd8 $2 {[%emt 0:13:30]} (16... Red8 17. Bxh6 Be8) 17. Re4 {[%emt 0:03:30]} (17. g4 $18) 17... Qe7 {[%emt 0:03:30] [#]} 18. Rf4 $1 {[%emt 0:01:30]} Red8 {[%emt 0:02:30]} 19. Qg3 {[%emt 0:01:30]} Nh5 {[%emt 0:01:30]} 20. Qd3 {[%emt 0:02:30]} f5 {[%emt 0:01:30]} 21. Rf3 {[%emt 0:00:30]} Be8 {[%emt 0:01:30]} 22. g4 {[%emt 0:00:30]} Nf6 {[%emt 0:01:30]} 23. gxf5 {[%emt 0:00:30]} exf5 {[%emt 0:02:30]} 24. Rxf5 {[%emt 0:00:30]} g6 {[%emt 0:00:30]} 25. Rf3 {[%emt 0:02:30]} Nh5 $2 {[%emt 0:07:30]} (25... Qxe5 {was necessary.} 26. dxe5 Rxd3 27. Bxd3 Nd5) 26. Be3 {[%emt 0:07:30]} Bg7 {[%emt 0:14:30]} 27. Nxg6 {[%emt 0:00:30]} Bxg6 {[%emt 0:00:30]} 28. Qxg6 {[%emt 0:00:30]} Nf6 {[%emt 0:02:30]} 29. Bxh6 {[%emt 0:00:00]} Rxd4 {[%emt 0:09:30]} 30. Bxg7 {[%emt 0:00:00]} Qxg7 {[%emt 0:00:00]} 31. Rxf6 {[%emt 0:00:30]} Re8 {[%emt 0:02:00]} 32. Qxg7+ {[%emt 0:01:30]} Kxg7 {[%emt 0:00:30]} 33. Rg6+ {[%emt 0:00:30]} Kf7 {[%emt 0:00:30]} 34. Rd6 $18 {[%emt 0:00:30]} 1-0